Cogmind - Beta 12 @@@ ROGUE MODE // 2024.01.22 @ 09:18:32 Player: Dosh Result: Destroyed by G-67 Veteran with Plasma Rifle Performance ------------- Evolutions (5) 2500 Regions Visited (22) 4400 Robots Destroyed (397) 1985 Value Destroyed (15147) 15147 Prototype IDs (46) 920 Alien Tech Used (0) 0 Bonus (7012) 7012 TOTAL SCORE: 31964 Bonus ------- High Alert Combat Kills 1178 Follower Combat Kills 4117 Entered Garrisons 200 Network Hubs Disabled 600 Aligned with FarCom 300 Met Data Miner 300 Met Zhirov 300 Met R17 at Cetus 500 Read Decrypted Archives 300 Friendly Fire -783 Cogmind --------- Core Integrity 0/1000 Matter 247/300 Energy 46/150 System Corruption 23% Temperature Cool (85) Movement Core (1650) Ox32 Location -5/Factory Parts ------- > --- POWER (2) -------- Light Angular Momentum Engine > --- PROPULSION (4) --- (None) > --- UTILITY (9) ------ Huge Storage Unit > --- WEAPON (2) ------- Heavy Phase Cannon > --- INVENTORY (25) --- Heavy Treads Heavy Treads Advanced Cooling System Improved Energy Well (400) Matter Compressor (250) Encrypted Comm Array Hacking Suite Advanced System Shield Long-range Tractor Beam Combat Drone Bay (0/2) Combat Drone Bay (0/2) Heavy Phase Cannon Hypervelocity Gauss Cannon Heavy Mace Peak State ------------ > --- POWER ------------ Reinforced Deuterium Engine Micro Fission Core > --- PROPULSION ------- Heavy Treads Heavy Treads > --- UTILITY ---------- Advanced Cooling System Huge Storage Unit Advanced Targeting Computer Improved Focal Shield Remote Force Field Advanced System Shield Long-range Tractor Beam Combat Drone Bay > --- WEAPON ----------- Heavy Phase Cannon Heavy Phase Cannon > --- INVENTORY -------- Heavy Treads Heavy Treads Advanced Cooling System High-capacity Storage Unit Improved Energy Well Matter Compressor Encrypted Comm Array Hardened Light Armor Plating Hardened Light Armor Plating Remote Force Field Hacking Suite Advanced System Shield Combat Drone Bay Combat Drone Bay Heavy Phase Cannon Heavy Phase Cannon Mini Assault Cannon Hypervelocity Gauss Cannon Heavy Mace [Rating: 103] Favorites ----------- Power Neutrino Core Engine Deuterium Engine Power Core Neutrino Core Reactor Quantum Reactor Propulsion Armored Medium Treads Treads Armored Medium Treads Leg Improved Titanium Leg Wheel Armored Huge Wheel Utility Hacking Suite Device Combat Drone Bay Storage High-capacity Storage Unit Processor Core Analyzer Hackware Hacking Suite Protection Medium Reactive Plating Weapon Advanced Assault Cannon Energy Gun EM Pulse Gun Energy Cannon Improved EM Pulse Cannon Ballistic Gun Advanced KE Penetrator Ballistic Cannon Advanced Assault Cannon Launcher Rocket Launcher Special Weapon Field Lobotomy Kit Impact Weapon Heavy Mace Build | -11 -10 -10 -9 -9 -9 -8 -8 -8 -8 -7 -7 -7 -7 -7 -7 -6 -6 -6 -6 -6 -6 -5 ------- Run | Jun Mat Min Mat Min Exi Min Mat Gar Mat Fac Was Fac Low Low Dat Pro Fac Ext Cet Arc Hub Fac Slots Evolved 10 | . . . 2 . . . 2 . . 2 . . . . . . 2 . . . . 2 Power 1 | . . . . . . . . . . . . . . . . . . . . . . 1 Propulsion 2 | . . . . . . . 1 . . 1 . . . . . . . . . . . . Utility 7 | . . . 2 . . . 1 . . 1 . . . . . . 2 . . . . 1 Weapon . | . . . . . . . . . . . . . . . . . . . . . . . Parts Attached 330 | 6 16 . 32 . . 11 18 20 29 10 13 30 2 2 2 4 33 3 5 3 29 62 Power 31 | 1 3 . 2 . . 1 2 1 3 1 . 3 . . . . 1 . 1 . 2 10 Engine 21 | 1 3 . 2 . . 1 2 1 3 . . . . . . . . . . . 1 7 Core 7 | . . . . . . . . . . 1 . 3 . . . . 1 . . . . 2 Reactor 3 | . . . . . . . . . . . . . . . . . . . 1 . 1 1 Propulsion 70 | 2 5 . 7 . . 2 7 2 7 2 1 9 . 1 . 2 5 2 . . 3 13 Treads 56 | 2 4 . 7 . . 1 5 1 7 2 1 9 . 1 . 2 5 2 . . 1 6 Leg 6 | . . . . . . . . . . . . . . . . . . . . . . 6 Wheel 8 | . 1 . . . . 1 2 1 . . . . . . . . . . . . 2 1 Hover . | . . . . . . . . . . . . . . . . . . . . . . . Flight . | . . . . . . . . . . . . . . . . . . . . . . . Utility 124 | 1 2 . 9 . . 2 4 6 11 4 11 10 . 1 . 1 18 1 2 2 13 26 Device 58 | . . . 1 . . 1 . 2 8 1 10 4 . . . . 7 1 1 1 6 15 Storage 5 | 1 1 . . . . . . 1 . . . 1 . . . . 1 . . . . . Processor 7 | . 1 . 4 . . . . 1 . . . . . . . . . . . . . 1 Hackware 9 | . . . . . . . 1 . . . . 1 . . . . 6 . . . . 1 Protection 45 | . . . 4 . . 1 3 2 3 3 1 4 . 1 . 1 4 . 1 1 7 9 Artifact . | . . . . . . . . . . . . . . . . . . . . . . . Weapon 105 | 2 6 . 14 . . 6 5 11 8 3 1 8 2 . 2 1 9 . 2 1 11 13 Energy Gun 8 | . 4 . 4 . . . . . . . . . . . . . . . . . . . Energy Cannon 18 | . . . . . . . . . 1 1 . 5 . . 1 1 3 . . . 1 5 Ballistic Gun 12 | 2 2 . 2 . . . . 2 . 1 . . . . . . . . 2 . . 1 Ballistic Cannon 45 | . . . 6 . . 3 3 6 4 1 1 3 1 . 1 . 5 . . 1 4 6 Launcher 16 | . . . 2 . . 3 2 1 3 . . . 1 . . . . . . . 3 1 Special Weapon 2 | . . . . . . . . . . . . . . . . . . . . . 2 . Impact Weapon 4 | . . . . . . . . 2 . . . . . . . . 1 . . . 1 . Slashing Weapon . | . . . . . . . . . . . . . . . . . . . . . . . Piercing Weapon . | . . . . . . . . . . . . . . . . . . . . . . . Special Melee Weapon . | . . . . . . . . . . . . . . . . . . . . . . . Unidentified Prototypes 8 | . . . 1 . . . . . 1 1 . 1 . . . . . . 2 . 2 . Corrupted Parts 1 | . . . . . . . . . . . . . . . . . . . . . . 1 System Corruption 8 | . . . . . . . . . . . . . . . . . . . . . . 8 Parts Lost 86 | . 3 . 6 . . 7 1 . 4 2 1 2 . . . 2 1 1 . 4 14 38 Power 12 | . 1 . . . . 1 . . . 1 . . . . . . 1 . . . 2 6 Propulsion 17 | . 1 . . . . 1 . . . . 1 1 . . . 1 . . . 1 5 6 Utility 40 | . . . 2 . . 3 1 . 4 1 . 1 . . . 1 . 1 . 2 4 20 Weapon 17 | . 1 . 4 . . 2 . . . . . . . . . . . . . 1 3 6 Highest Loss Streak 15 | . 1 . 2 . . 5 1 . 3 2 1 1 . . . 2 1 1 . 4 11 15 To Critical Strikes 1 | . . . . . . . . . . . . . . . . . . . . . . 1 Average Slot Usage (%) 93 | . 92 100 90 100 100 90 97 99 97 99 99 99 100 100 85 99 94 93 92 87 90 79 Engine 4 | . 13 14 11 11 11 10 9 9 8 1 . . . . . . . . . . 1 4 Core 2 | . . . . . . . . . . 5 7 7 7 7 7 7 5 6 . . . 3 Treads 22 | . 23 28 22 22 22 21 20 26 26 30 29 29 30 30 30 29 25 26 26 22 18 7 Device 10 | . . . . . . 1 . 6 16 15 22 17 23 17 15 15 6 13 13 8 8 19 Storage 7 | . 14 14 11 11 11 11 9 9 9 7 7 7 7 7 7 7 6 6 6 6 6 5 Processor 8 | . 12 14 15 22 22 14 9 8 9 7 7 7 7 7 7 7 6 6 6 6 5 4 Hackware 6 | . . . . . . . 9 9 2 . . . . . . . 19 20 20 20 19 4 Protection 8 | . . . 7 11 11 9 16 11 6 14 6 11 7 12 15 15 7 . . 2 9 6 Energy Gun 1 | . 21 28 3 . . . . . . . . . . . . . . . . . . . Energy Cannon 1 | . . . . . . . . . 1 1 . 1 7 7 . 14 2 . . . . 4 Ballistic Gun 1 | . 4 . 3 11 11 . . 1 . 1 . . . . . . . . 7 9 1 . Ballistic Cannon 10 | . . . 14 11 11 20 17 15 16 12 15 13 6 7 . . 10 13 5 2 9 5 Naked Turns . | . . . . . . . . . . . . . . . . . . . . . . . Heaviest Build 153 | 11 29 29 40 39 39 40 43 75 81 103 99 114 94 99 99 99 120 120 132 132 136 153 Greatest Support 140 | 40 40 40 40 40 40 40 60 60 64 91 91 109 102 102 102 114 114 120 120 120 120 140 Greatest Overweight (x) 42 | . 1 . . . . 3 4 7 7 1 1 1 . . . 1 1 1 1 1 42 6 Average Overweight (x) . | . . . . . . . 2 . 1 . 1 . . . . . . . . 1 1 1 Largest Inventory Capacity 25 | 8 15 15 15 15 15 15 15 20 20 20 20 20 20 20 20 20 25 25 25 25 25 25 Average Capacity 20 | 6 14 15 15 15 15 15 15 15 20 20 20 20 20 20 20 20 21 25 25 25 25 25 Most Carried 25 | 1 15 15 15 14 15 15 15 20 20 20 20 20 20 20 20 20 24 25 25 25 25 25 Average Carried 18 | . 9 14 14 14 14 11 12 15 19 19 19 19 19 20 20 19 20 24 24 23 20 18 Final Capacity 25 | 8 15 15 15 15 15 15 15 20 20 20 20 20 20 20 20 20 25 25 25 25 25 25 Final Carried 25 | 1 14 15 14 14 15 11 15 20 19 20 20 20 20 20 20 20 24 23 25 21 14 18 Class Distribution -------------------- 62% | Mutant 17% | Scavenger-Mutant 17% | Hacker-Mutant 3% | Machinist-Mutant Dominant Class ---------------- Mutant | -10/Materials Mutant | -10/Mines Mutant | -9/Materials Mutant | -9/Mines Mutant | -9/Exiles Mutant | -8/Mines Scavenger-Mutant | -8/Materials Scavenger-Mutant | -8/Garrison Mutant | -8/Materials Mutant | -7/Factory Mutant | -7/Waste Mutant | -7/Factory Mutant | -7/Lower Caves Mutant | -7/Lower Caves Mutant | -7/Data Miner Mutant | -6/Proximity Caves Hacker-Mutant | -6/Factory Machinist-Mutant | -6/Extension Scavenger-Mutant | -6/Cetus Scavenger-Mutant | -6/Archives Scavenger-Mutant | -6/Hub_04(d) Mutant | -5/Factory Resources | -11 -10 -10 -9 -9 -9 -8 -8 -8 -8 -7 -7 -7 -7 -7 -7 -6 -6 -6 -6 -6 -6 -5 ----------- Run | Jun Mat Min Mat Min Exi Min Mat Gar Mat Fac Was Fac Low Low Dat Pro Fac Ext Cet Arc Hub Fac Matter Collected 12781 | 260 228 . 1043 160 . 431 635 551 1393 412 565 1341 286 99 . 76 759 600 191 8 1502 2241 Remotely 1088 | . . . . . . . . . . . 255 . . . . . . . . . . 833 Salvage Created 14204 | 79 1048 311 1919 78 . 496 629 444 1513 431 1394 1414 460 165 . 94 547 124 210 . 1422 1426 Parts 752 | 1 79 18 123 4 . 17 52 24 84 22 3 80 30 7 . 7 34 5 9 . 77 76 Haulers Intercepted 13 | . 1 . 6 . . . . . 2 . . 2 . . . . . . . . 2 . Recyclers Shooed 11 | . . . 3 . . 1 2 . . . . 1 . . . . . . . . . 4 Parts Field Recycled . | . . . . . . . . . . . . . . . . . . . . . . . Retrieved Matter . | . . . . . . . . . . . . . . . . . . . . . . . Parts Self-Destructed 27 | . . . . . . . . . . . . . 22 2 . 3 . . . . . . Prevented 16 | . . . . . . . . . . . . . 8 5 . 3 . . . . . . Kills | -11 -10 -10 -9 -9 -9 -8 -8 -8 -8 -7 -7 -7 -7 -7 -7 -6 -6 -6 -6 -6 -6 -5 ------- Run | Jun Mat Min Mat Min Exi Min Mat Gar Mat Fac Was Fac Low Low Dat Pro Fac Ext Cet Arc Hub Fac Combat Hostiles Destroyed 307 | . 20 6 48 7 . 15 19 18 39 10 6 24 13 3 . 1 12 4 3 1 21 37 Melee 1 | . . . . . . . . . . . . . . . . . . 1 . . . . Guns 48 | . 19 3 10 2 . . . 4 . . . . . . . . . . 3 1 5 1 Cannons 207 | . . . 29 5 . 5 13 14 28 8 6 22 10 3 . . 11 3 . . 14 36 AOE 42 | . . 1 7 . . 10 6 . 10 1 . . 3 . . 1 1 . . . 2 . Classes Destroyed 22 | 1 5 2 4 1 . 1 1 1 . 1 1 . . . . 1 . 1 . . 2 . Worker 21 | . . 1 3 1 . . 2 . 4 . . 3 . . . . 2 . . . 3 2 Builder 12 | . 3 . . . . 1 . . 2 . . 2 . . . . . . . . 4 . Hauler 13 | . 1 . 6 . . . . . 2 . . 2 . . . . . . . . 2 . Recycler 18 | 1 . . 1 . . 3 2 . 2 1 . 6 . . . . 1 . . . 1 . Mechanic 2 | . . . 1 . . . . . 1 . . . . . . . . . . . . . Operator 8 | . 2 . 1 . . . 1 . 1 . . 1 . . . . . . . . . 2 Drone 1 | . . . . . . . . . . . . . . . . . . . . . 1 . Watcher 23 | . 3 . 5 . . . 4 . 3 . . 1 . . . . 1 . . . 4 2 Swarmer 47 | . . . 11 . . . 7 6 4 . . 1 3 . . . 4 1 . . 1 9 Grunt 124 | . 20 4 24 . . 14 6 5 20 3 . 5 8 3 . . . . 1 . 5 6 Brawler 8 | . . . 1 . . . . 1 2 . . 1 2 . . . . . . . . 1 Duelist 7 | . . . . . . 1 1 . 3 . . 1 . . . . . . . . 1 . Protector 4 | . . . 2 . . . . . 1 . . . . . . . . . . . 1 . Sentry 38 | . . 2 10 . . . 4 1 8 . . 4 . . . . . 1 . 1 5 2 Demolisher 1 | . . . . . . . . . . . . . . . . . . 1 . . . . Specialist 3 | . . . . . . . . 2 . . . . . . . . . 1 . . . . Hunter 15 | . . . . . . . 1 3 1 2 . 2 . . . . 2 . . . 2 2 Programmer 43 | . . . . . . . . . . 5 . 10 . . . . 6 . . . 5 17 Heavy 1 | . . . . . . . . . . . . . . . . . . . . . 1 . Behemoth 1 | . . . . . . . . . . . . . . . . 1 . . . . . . Compactor 6 | . . . . . . . . . . . 6 . . . . . . . . . . . Cetus Guard 2 | . . . . . . . . . . . . . . . . . . . 2 . . . Assembled 7 | . . . . 7 . . . . . . . . . . . . . . . . . . Best Kill Streak 9 | 1 6 2 6 4 . 8 8 6 9 4 2 3 4 3 . 1 5 1 2 1 5 9 Combat Bots Only 8 | . 3 2 5 4 . 6 5 6 8 3 2 3 4 3 . 1 4 1 2 1 3 8 Max Kills in Single Turn 3 | 1 2 1 3 1 . 2 2 2 3 1 1 2 2 2 . 1 1 1 1 1 2 1 Gunslinging 1 | . 1 . . . . . . . . . . . . . . . . . . . . . Exploded 3 | . . 1 3 . . 2 2 . 3 1 . . 2 . . 1 1 . . . 1 . Melee 1 | . . . . . . . . . . . . . . . . . . 1 . . . . Uniques/NPCs Destroyed . | . . . . . . . . . . . . . . . . . . . . . . . Combat | -11 -10 -10 -9 -9 -9 -8 -8 -8 -8 -7 -7 -7 -7 -7 -7 -6 -6 -6 -6 -6 -6 -5 -------- Run | Jun Mat Min Mat Min Exi Min Mat Gar Mat Fac Was Fac Low Low Dat Pro Fac Ext Cet Arc Hub Fac Damage Taken 23600 | . 644 295 1344 174 . 685 510 650 1996 686 41 1343 335 103 . 218 1016 521 67 1113 3714 8145 Core 2884 | . 96 70 216 2 . 42 78 69 270 63 . 125 39 . . . 58 52 . 177 517 1010 Absorbed by Shields 1273 | . . . . . . 36 . 136 44 86 . 65 . . . . . 258 21 33 28 566 Reduced by Siege Mode 52 | . . . . . . . . . . . . . . . . . . . . . . 52 Redirected to Shielding 349 | . . . . . . . 2 5 . . . . . . . . . . . . 31 311 Regen/Repaired (Parts) 1443 | . 157 . 150 . . . 408 . 316 . . . . . . . 267 . . . . 145 Core Remaining (%) 44 | 100 . 33 . . . 35 . . 24 . . . . . . 67 . . . . 5 . Volleys Fired 978 | . 73 19 132 17 . 37 55 44 97 27 35 85 26 5 . 3 38 22 12 3 96 152 Largest 2 | . 2 2 2 2 . 2 2 2 2 2 2 2 2 2 . 2 2 2 2 1 2 2 Hottest 180 | . 80 80 85 62 . 78 78 106 120 120 110 126 126 122 . 138 138 96 96 35 117 180 Shots Fired 1831 | . 127 38 250 34 . 60 104 87 175 53 70 171 47 11 . 6 73 45 25 3 178 274 Gun 346 | . 127 38 101 17 . . . 12 . 1 . . . . . . . . 20 3 18 9 Cannon 1431 | . . . 145 17 . 45 98 75 164 52 70 171 42 11 . 6 73 45 5 . 150 262 Launcher 52 | . . . 4 . . 15 6 . 11 . . . 5 . . . . . . . 8 3 Special 2 | . . . . . . . . . . . . . . . . . . . . . 2 . Kinetic 1388 | . 35 . 187 34 . 45 98 87 149 36 70 140 21 5 . . 65 45 25 3 152 191 Thermal 71 | . . . . . . . . . . . . . . . . . . . . . . 71 Explosive 49 | . . . 4 . . 15 6 . 11 . . . 5 . . . . . . . 8 . Electromagnetic 321 | . 92 38 59 . . . . . 15 17 . 31 21 6 . 6 8 . . . 16 12 Robot Hit Streak 16 | . 10 16 15 6 . 10 12 9 12 7 14 15 7 3 . 5 10 6 11 14 10 16 Robot Miss Streak 6 | . 5 3 3 4 . 1 3 6 4 3 3 5 2 2 . 1 4 2 3 . 6 3 Penetration Max 1 | . . . . . . . . . 1 1 . . 1 . . . . . 1 . 1 1 Secondary Targets 2 | . 2 . . . . . . . . . . . . . . . . . . . . . Max Gunslinging Chain 1 | . 1 . . . . . . . . . . . . . . . . . . . . . Shots Hit Robots 1129 | . 88 28 174 18 . 50 54 55 99 32 52 105 24 5 . 5 36 27 17 3 86 171 Core Hits 618 | . 42 9 83 12 . 38 41 35 82 13 17 42 24 6 . 2 18 11 9 1 66 67 Critical Kills 7 | . . . . . . . . . . . . . . . . . . . 1 . 4 2 Critical Parts Destroyed 9 | . . . . . . . . . . . . . . . . . . . 3 1 1 4 Critical Strikes 68 | . . 1 4 . . 2 3 3 9 4 1 4 1 . . . 3 3 4 1 7 18 Destroy 16 | . . . . . . . . . . . . . . . . . . . 4 1 5 6 Blast 50 | . . . 4 . . 2 3 3 9 4 1 4 . . . . 3 3 . . 2 12 Corrupt 2 | . . 1 . . . . . . . . . . 1 . . . . . . . . . Melee Attacks 6 | . . . . . . . . 4 . . . . . . . . 2 . . . . . Impact 6 | . . . . . . . . 4 . . . . . . . . 2 . . . . . Slashing . | . . . . . . . . . . . . . . . . . . . . . . . Piercing . | . . . . . . . . . . . . . . . . . . . . . . . Sneak Attacks . | . . . . . . . . . . . . . . . . . . . . . . . Combat Hostiles . | . . . . . . . . . . . . . . . . . . . . . . . Follow-up Attacks . | . . . . . . . . . . . . . . . . . . . . . . . Damage Inflicted 37703 | 1 1453 471 3777 329 . 2394 1706 1108 5069 1179 2144 3735 999 184 . 170 1274 806 531 84 4324 5965 Guns 4270 | . 1281 352 1020 128 . . . 123 . 25 . . . . . . . . 506 84 485 266 Cannons 25561 | . . . 2011 186 . 811 1074 985 3025 979 2144 3510 615 184 . 91 1139 768 25 . 2483 5531 Explosions 7237 | . 169 108 669 . . 1570 591 . 2026 158 . 117 384 . . 79 63 . . . 1243 60 Melee . | . . . . . . . . . . . . . . . . . . . . . . . Ramming 635 | 1 3 11 77 15 . 13 41 . 18 17 . 108 . . . . 72 38 . . 113 108 Kinetic 23765 | . 306 . 2439 314 . 811 1074 1108 2690 698 2144 2917 245 66 . . 990 768 531 84 2508 4072 Thermal 2464 | . 169 108 198 . . . . . 79 158 . 115 . . . 79 63 . . . . 1495 Explosive 5874 | . . . 471 . . 1570 591 . 1947 . . . 384 . . . . . . . 911 . Electromagnetic 4965 | . 975 352 592 . . . . . 335 306 . 595 370 118 . 91 149 . . . 792 290 Impact . | . . . . . . . . . . . . . . . . . . . . . . . Slashing . | . . . . . . . . . . . . . . . . . . . . . . . Piercing . | . . . . . . . . . . . . . . . . . . . . . . . Highest Corruption 23 | . 1 1 1 1 1 1 1 1 1 . . 5 5 5 5 5 4 4 4 4 23 23 Average Corruption 4 | . 1 1 1 1 1 1 1 1 1 . . 4 5 5 5 5 2 4 4 4 8 9 Corruption Purged 20 | . . . . . . . . . . . . . . . . . 1 . . . . 19 Corruption Blocked . | . . . . . . . . . . . . . . . . . . . . . . . Effects 604 | . . 5 10 12 1 8 3 7 23 . . 89 15 20 5 9 36 41 11 4 127 178 Message Errors 144 | . . 2 1 4 . 3 1 1 6 . . 17 6 4 1 1 5 16 2 1 27 46 Matter Fused 157 | . . . 3 4 . 3 . 1 7 . . 26 4 5 2 3 4 11 4 . 41 39 Heat Flow Errors 70 | . . . 2 1 1 1 1 . 1 . . 17 1 2 2 1 8 3 . 1 9 19 Energy Discharges 68 | . . . 1 2 . . 1 1 3 . . 9 1 3 . 3 6 4 1 1 13 19 Parts Rejected 6 | . . . . . . . . . . . . 1 . 1 . . . . . . 1 3 Parts Fused 11 | . . . 1 . . . . . . . . 2 . . . . . . 1 . 2 5 Data Loss (minor) 67 | . . 1 1 . . . . 2 3 . . 10 2 4 . 1 5 2 2 1 15 18 Data Loss (major) 31 | . . 2 1 1 . . . 2 . . . 6 1 . . . 5 . . . 5 8 Misfires 24 | . . . . . . 1 . . 1 . . 1 . 1 . . 1 2 1 . 7 9 Alerts 11 | . . . . . . . . . 1 . . . . . . . 2 2 . . 4 2 Misdirections 3 | . . . . . . . . . . . . . . . . . . . . . . 3 Weapon Failures 12 | . . . . . . . . . 1 . . . . . . . . 1 . . 3 7 Overload Shots . | . . . . . . . . . . . . . . . . . . . . . . . Overflow Damage 783 | . 2 19 48 9 . 46 28 6 130 46 . 153 2 . . . 27 3 . . 80 184 Projectiles 592 | . . . 19 9 . 31 27 6 75 46 . 150 2 . . . 9 . . . 35 183 Explosions 160 | . 2 19 29 . . 15 1 . 55 . . . . . . . 18 . . . 20 1 Melee 31 | . . . . . . . . . . . . 3 . . . . . 3 . . 25 . Knockbacks 166 | . . . 21 2 . 8 12 13 14 4 . 22 . 1 . . 11 8 . . 13 37 Impact 2 | . . . . . . . 1 . . . . . . . . . 1 . . . . . Kinetic 155 | . . . 19 2 . 8 11 12 13 4 . 22 . 1 . . 9 7 . . 13 34 Secondary 9 | . . . 2 . . . . 1 1 . . . . . . . 1 1 . . . 3 Self-Inflicted Damage 872 | . . . 67 . . 91 3 . 331 45 . . 46 . . . 70 . . . 190 29 Shots 22 | . . . 3 . . 4 . . 8 1 . . 2 . . . 1 . . . 2 1 Rammed 66 | . 1 1 11 2 . 4 4 . 1 3 . 11 . . . . 5 3 . . 7 13 Targets Rammed 75 | 1 1 1 12 2 . 4 4 . 3 3 . 14 . . . . 6 4 . . 7 13 Kicked . | . . . . . . . . . . . . . . . . . . . . . . . Crushed 9 | 1 . . 1 . . . . . 2 . . 3 . . . . 1 1 . . . . Highest Temperature 402 | . 144 198 237 269 276 318 138 309 402 376 297 252 289 98 226 162 272 188 18 272 324 360 Average Temperature 70 | . 37 87 46 39 142 97 25 102 96 120 93 55 59 37 97 63 62 32 8 126 85 66 Received Heat Transfer 4327 | . 381 162 522 40 . 379 171 225 801 33 . 204 189 36 . 36 75 124 9 36 261 643 Effects 9 | . . . . . . . . . 3 1 . . . . . . . . . . 5 . Shutdowns 1 | . . . . . . . . . . 1 . . . . . . . . . . . . Energy Bleed 1 | . . . . . . . . . . . . . . . . . . . . . 1 . Interference 6 | . . . . . . . . . 3 . . . . . . . . . . . 3 . Matter Decay 1 | . . . . . . . . . . . . . . . . . . . . . 1 . Siege Activations 3 | . . . . . . . . . . . . . . . . . . . . . . 3 Total Turns 58 | . . . . . . . . . . . . . . . . . . . . . . 58 Longest Duration 22 | . . . . . . . . . . . . . . . . . . . . . . 22 Robots Corrupted 9 | . 1 2 2 . . . . . 1 1 . 2 . . . . . . . . . . Combat Hostiles 9 | . 1 2 2 . . . . . 1 1 . 2 . . . . . . . . . . Parts Fried 28 | . 3 2 8 . . . . . 1 1 . 4 . . . . 2 . . . 5 2 Impact Corruptions 4 | . . . . . . . . . . . . 1 . . . . . 1 . . 2 . Robots Melted . | . . . . . . . . . . . . . . . . . . . . . . . Combat Hostiles . | . . . . . . . . . . . . . . . . . . . . . . . Parts Melted 1 | . . . . . . . . . . . . . . . . . . . . . . 1 Heat Transferred 2419 | . 150 100 250 . . . . . 150 200 . 100 . . . 50 50 . . . . 1369 Parts Sabotaged . | . . . . . . . . . . . . . . . . . . . . . . . Parts Stolen . | . . . . . . . . . . . . . . . . . . . . . . . Parts Stripped . | . . . . . . . . . . . . . . . . . . . . . . . Power Chain Reactions 16 | . 4 2 4 . . . . . 1 2 . 1 . . . 1 1 . . . . . Missiles Intercepted . | . . . . . . . . . . . . . . . . . . . . . . . Alert | -11 -10 -10 -9 -9 -9 -8 -8 -8 -8 -7 -7 -7 -7 -7 -7 -6 -6 -6 -6 -6 -6 -5 ------- Run | Jun Mat Min Mat Min Exi Min Mat Gar Mat Fac Was Fac Low Low Dat Pro Fac Ext Cet Arc Hub Fac Peak Influence 1419 | 5 189 123 1127 424 . 298 314 649 808 398 62 692 . . . . 450 1162 1118 447 634 1419 Initial 650 | . 3 58 42 424 . . 23 69 315 367 51 . . . . . . 215 650 447 147 305 Average 316 | 3 106 105 594 261 . 130 149 458 301 253 24 210 . . . . 163 385 915 429 277 544 Maximum Alert Level 4 | . . . 4 2 . 1 1 2 3 1 . 2 . . . . 2 4 4 2 2 4 Low Security (%) 40 | 100 100 100 21 31 . 69 74 11 34 35 100 51 . . . . 61 31 . . 23 5 Level 1 32 | . . . 11 27 . 30 25 19 46 64 . 32 . . . . 29 30 . . 69 38 Level 2 17 | . . . 26 41 . . . 69 13 . . 15 . . . . 8 19 6 100 7 42 Level 3 5 | . . . 27 . . . . . 5 . . . . . . . . 15 89 . . 3 Level 4 2 | . . . 12 . . . . . . . . . . . . . . 2 3 . . 10 Level 5 . | . . . . . . . . . . . . . . . . . . . . . . . High Security . | . . . . . . . . . . . . . . . . . . . . . . . Max Security . | . . . . . . . . . . . . . . . . . . . . . . . Squads Dispatched 95 | . 7 . 8 . . . 4 . 10 7 . 10 . . . . 13 6 . . 12 18 Investigation 30 | . 5 . 3 . . . 1 . 7 1 . 1 . . . . 7 1 . . . 4 Extermination 33 | . . . . . . . . . . 4 . 8 . . . . 6 . . . 6 9 Reinforcement 20 | . 2 . 3 . . . 1 . 1 2 . 1 . . . . . 2 . . 6 2 Assault 10 | . . . 2 . . . . . 2 . . . . . . . . 3 . . . 3 Garrison 2 | . . . . . . . 2 . . . . . . . . . . . . . . . Intercept . | . . . . . . . . . . . . . . . . . . . . . . . Searches Triggered . | . . . . . . . . . . . . . . . . . . . . . . . Data Miner Redirects 11 | . . . . . . . . . . . . . . . . . 3 3 . . . 5 Construction Impeded 5 | . . . 2 . . . . . . . . . . . . . . . . . 2 1 Haulers Reinforced 1 | . . . . . . . . . . . . . . . . . . . . . 1 . Active Scanning Responses . | . . . . . . . . . . . . . . . . . . . . . . . Cargo Convoy Interrupts 1 | . . . . . . . . . . 1 . . . . . . . . . . . . Stealth | -11 -10 -10 -9 -9 -9 -8 -8 -8 -8 -7 -7 -7 -7 -7 -7 -6 -6 -6 -6 -6 -6 -5 --------- Run | Jun Mat Min Mat Min Exi Min Mat Gar Mat Fac Was Fac Low Low Dat Pro Fac Ext Cet Arc Hub Fac Distress Signals 22 | . 2 . 4 . . . 2 . 1 4 . . . . . . 2 . 2 . 2 3 Communications Jammed 68 | . . . . . . . . 33 16 1 . 7 . . . . . . . . 11 . Distress Signals 62 | . . . . . . . . 33 16 1 . 7 . . . . . . . . 5 . Times Spotted 586 | . 28 6 67 16 . 15 32 22 55 13 6 37 14 5 . 1 33 40 18 17 50 111 Peak Tracking Total 16 | . 3 2 5 5 . 6 4 6 9 5 2 4 4 4 . 1 4 6 5 16 8 12 Tactical Retreats 34 | . 1 . 5 1 . . . 2 5 1 . 3 1 2 . . 2 . . . 1 10 Traps | -11 -10 -10 -9 -9 -9 -8 -8 -8 -8 -7 -7 -7 -7 -7 -7 -6 -6 -6 -6 -6 -6 -5 ------- Run | Jun Mat Min Mat Min Exi Min Mat Gar Mat Fac Was Fac Low Low Dat Pro Fac Ext Cet Arc Hub Fac Traps Triggered 25 | . 4 . 1 . . . 2 3 1 1 . 5 . . . . 2 1 . . 3 2 Indirectly 1 | . . . . . . . . . . . . . . . . . . . . . 1 . Trap Hack Attempts . | . . . . . . . . . . . . . . . . . . . . . . . Triggered . | . . . . . . . . . . . . . . . . . . . . . . . Disarmed . | . . . . . . . . . . . . . . . . . . . . . . . Reprogrammed . | . . . . . . . . . . . . . . . . . . . . . . . Reused . | . . . . . . . . . . . . . . . . . . . . . . . Traps Extracted . | . . . . . . . . . . . . . . . . . . . . . . . Installed . | . . . . . . . . . . . . . . . . . . . . . . . Triggered 2 | . . . 1 . . . . . . 1 . . . . . . . . . . . . Machines | -11 -10 -10 -9 -9 -9 -8 -8 -8 -8 -7 -7 -7 -7 -7 -7 -6 -6 -6 -6 -6 -6 -5 ---------- Run | Jun Mat Min Mat Min Exi Min Mat Gar Mat Fac Was Fac Low Low Dat Pro Fac Ext Cet Arc Hub Fac Machines Disabled 71 | . 1 . 9 1 . 2 1 2 5 1 . 10 . . . . 8 3 3 . 10 15 Max in Single Turn 4 | . 1 . 1 1 . 1 1 1 1 1 . 2 . . . . 1 . 1 . 4 1 Garrison Access 7 | . . . . . . . . . 1 . . 1 . . . . 1 . . . 2 2 Garrison Relay 1 | . . . . . . . . 1 . . . . . . . . . . . . . . Network Hub 3 | . . . . . . . . . . . . . . . . . . . . . 3 . Machines Repaired . | . . . . . . . . . . . . . . . . . . . . . . . Machines Sabotaged . | . . . . . . . . . . . . . . . . . . . . . . . Overloaded Fab Kills . | . . . . . . . . . . . . . . . . . . . . . . . Hacking | -11 -10 -10 -9 -9 -9 -8 -8 -8 -8 -7 -7 -7 -7 -7 -7 -6 -6 -6 -6 -6 -6 -5 --------- Run | Jun Mat Min Mat Min Exi Min Mat Gar Mat Fac Was Fac Low Low Dat Pro Fac Ext Cet Arc Hub Fac Machines Accessed 114 | . 8 . 16 . 1 . 8 2 15 5 . 9 . . 4 . 14 4 1 1 11 15 Terminals 63 | . 5 . 10 . . . 4 2 8 4 . 4 . . . . 6 4 1 . 9 6 Fabricators 11 | . . . . . . . . . . 1 . 1 . . . . 5 . . . . 4 Repair Stations 12 | . 1 . 2 . . . 2 . 2 . . 1 . . . . 2 . . . . 2 Recycling Units 7 | . 2 . 2 . . . . . 2 . . 1 . . . . . . . . . . Scanalyzers 7 | . . . 2 . . . 1 . 2 . . 1 . . . . . . . . . 1 Garrison Access 8 | . . . . . . . 1 . 1 . . 1 . . . . 1 . . . 2 2 Total Hacks 432 | . 18 . 43 . 1 . 34 2 47 14 . 18 . . 30 . 59 18 4 25 33 86 Successful 274 | . 13 . 27 . 1 . 25 2 33 4 . 7 . . 30 . 40 13 . 25 21 33 Failed 157 | . 4 . 16 . . . 9 . 14 10 . 11 . . . . 19 5 4 . 12 53 Catastrophic 43 | . . . 2 . . . 3 . 1 2 . 6 . . . . 3 . 2 . 2 22 Database Lockouts 1 | . 1 . . . . . . . . . . . . . . . . . . . . . Manual 162 | . 11 . 25 . 1 . 17 . 22 6 . 4 . . . . 26 14 1 . 15 20 Terminals 218 | . 10 . 29 . . . 15 2 25 11 . 4 . . . . 26 18 4 . 28 46 Fabricators 47 | . . . . . . . . . . 3 . 4 . . . . 22 . . . . 18 Repair Stations 56 | . 4 . 7 . . . 13 . 10 . . 2 . . . . 7 . . . . 13 Recycling Units 12 | . 4 . 3 . . . . . 2 . . 3 . . . . . . . . . . Scanalyzers 26 | . . . 4 . . . 4 . 9 . . 3 . . . . . . . . . 6 Garrison Access 17 | . . . . . . . 2 . 1 . . 2 . . . . 4 . . . 5 3 Terminal Hacks 115 | . 4 . 8 . 1 . 3 2 10 2 . . . . 30 . 7 9 . 25 10 4 Record 38 | . . . 1 . . . . . . . . . . . 11 . . . . 25 1 . Part Schematic 13 | . 1 . . . . . . . . . . . . . 10 . 1 . . . 1 . Robot Schematic 7 | . . . . . . . . . . . . . . . 6 . . . . . 1 . Robot Analysis 8 | . 2 . 1 . . . 1 . . . . . . . . . . 3 . . . 1 Prototype ID Bank 5 | . . . . . . . . . 1 . . . . . 3 . . . . . 1 . Branch Access Points 1 | . . . . . . . . . . 1 . . . . . . . . . . . . Emergency Access Points 3 | . . . . . . . . 1 . . . . . . . . . . . . 2 . Terminal Index 4 | . . . . . . . . . 1 . . . . . . . 1 1 . . 1 . Repair Station Index 1 | . . . . . . . . . . . . . . . . . 1 . . . . . Scanalyzer Index 1 | . . . . . . . . . 1 . . . . . . . . . . . . . Alert Level 3 | . . . . . . . . . 1 1 . . . . . . . . . . 1 . Unreport Threat 11 | . . . . . . . 2 . 3 . . . . . . . . 3 . . 1 2 Locate Traps 6 | . . . 1 . . . . . . . . . . . . . 1 2 . . 1 1 Dispatch Records 1 | . . . 1 . . . . . . . . . . . . . . . . . . . Security Status 1 | . . . . . . . . . . . . . . . . . 1 . . . . . Patrol Status 1 | . . . . . . . . . . . . . . . . . 1 . . . . . Transport Status 3 | . . . 3 . . . . . . . . . . . . . . . . . . . Recall Investigation 1 | . . . . . . . . . 1 . . . . . . . . . . . . . Hauler Manifests 4 | . 1 . 1 . . . . . 1 . . . . . . . 1 . . . . . Zone Layout 1 | . . . . . . . . . 1 . . . . . . . . . . . . . Garrison Registry 1 | . . . . . . . . 1 . . . . . . . . . . . . . . EX-Prototype ID Bank 1 | . . . . . 1 . . . . . . . . . . . . . . . . . Fabricator Hacks 30 | . . . . . . . . . . 1 . 2 . . . . 18 . . . . 9 Network Status 4 | . . . . . . . . . . 1 . . . . . . 2 . . . . 1 Load Schematic 12 | . . . . . . . . . . . . 1 . . . . 7 . . . . 4 Build 14 | . . . . . . . . . . . . 1 . . . . 9 . . . . 4 Repair Station Hacks 42 | . 4 . 6 . . . 11 . 8 . . 1 . . . . 6 . . . . 6 Scan Component 22 | . 2 . 3 . . . 6 . 4 . . 1 . . . . 3 . . . . 3 Repair 20 | . 2 . 3 . . . 5 . 4 . . . . . . . 3 . . . . 3 Recycling Unit Hacks 1 | . 1 . . . . . . . . . . . . . . . . . . . . . Report Inventory 1 | . 1 . . . . . . . . . . . . . . . . . . . . . Scanalyzer 24 | . . . 4 . . . 4 . 8 . . 2 . . . . . . . . . 6 Insert Component 12 | . . . 2 . . . 2 . 4 . . 1 . . . . . . . . . 3 Analyze 12 | . . . 2 . . . 2 . 4 . . 1 . . . . . . . . . 3 Garrison Access Hacks 8 | . . . . . . . 1 . 1 . . 1 . . . . 1 . . . 2 2 Unlock Access 1 | . . . . . . . 1 . . . . . . . . . . . . . . . Seal Access 7 | . . . . . . . . . 1 . . 1 . . . . 1 . . . 2 2 Unauthorized Hacks 54 | . 4 . 9 . . . 6 . 6 1 . 1 . . . . 8 4 . . 9 6 Terminals 45 | . 2 . 7 . . . 5 . 4 1 . . . . . . 7 4 . . 9 6 Track 1 | . . . . . . . . . . . . . . . . . 1 . . . . . Assimilate 5 | . . . . . . . . . . . . . . . . . 2 . . . 2 1 Botnet 32 | . 1 . 6 . . . 4 . 3 1 . . . . . . 3 3 . . 6 5 Operators 7 | . 1 . 1 . . . 1 . 1 . . . . . . . 1 1 . . 1 . Fabricators 1 | . . . . . . . . . . . . . . . . . 1 . . . . . Prioritize 1 | . . . . . . . . . . . . . . . . . 1 . . . . . Repair Stations . | . . . . . . . . . . . . . . . . . . . . . . . Recycling Units 7 | . 2 . 2 . . . . . 2 . . 1 . . . . . . . . . . Tunnel 7 | . 2 . 2 . . . . . 2 . . 1 . . . . . . . . . . Scanalyzers . | . . . . . . . . . . . . . . . . . . . . . . . Garrison Access 1 | . . . . . . . 1 . . . . . . . . . . . . . . . Watchers 1 | . . . . . . . 1 . . . . . . . . . . . . . . . Data Cores Recovered . | . . . . . . . . . . . . . . . . . . . . . . . Used . | . . . . . . . . . . . . . . . . . . . . . . . Hacking Detections 84 | . 5 . 13 . . . 7 1 10 5 . 8 . . . . 12 3 1 . 7 12 Full Trace Events 18 | . . . 1 . . . . . 5 1 . . . . . . 7 . . . . 4 Feedback Events . | . . . . . . . . . . . . . . . . . . . . . . . Feedback Blocked . | . . . . . . . . . . . . . . . . . . . . . . . Robot Schematics Acquired 7 | . . . . . . . . . . . . . . . 6 . . . . . 1 . Robots Built . | . . . . . . . . . . . . . . . . . . . . . . . Authchips . | . . . . . . . . . . . . . . . . . . . . . . . Time . | . . . . . . . . . . . . . . . . . . . . . . . Total Robot Build Rating . | . . . . . . . . . . . . . . . . . . . . . . . Part Schematics Acquired 24 | . 1 . 2 . . . 2 . 3 . . 1 . . 10 . 1 . . . 1 3 Parts Built 18 | . . . . . . . . . . . . 2 . . . . 12 . . . . 4 Authchips 4 | . . . . . . . . . . . . 1 . . . . 3 . . . . . Time 1180 | . . . . . . . . . . . . 53 . . . . 791 . . . . 336 Total Part Build Rating 105 | . . . . . . . . . . . . 12 . . . . 69 . . . . 24 Parts Repaired 20 | . 2 . 3 . . . 5 . 4 . . . . . . . 3 . . . . 3 Time 717 | . 52 . 71 . . . 152 . 228 . . . . . . . 125 . . . . 89 Parts Recycled . | . . . . . . . . . . . . . . . . . . . . . . . Recycled Matter . | . . . . . . . . . . . . . . . . . . . . . . . Retrieved Matter . | . . . . . . . . . . . . . . . . . . . . . . . Retrieved Components . | . . . . . . . . . . . . . . . . . . . . . . . Parts Scanalyzed 11 | . . . 2 . . . 2 . 3 . . 1 . . . . . . . . . 3 Part Schematics Acquired 11 | . . . 2 . . . 2 . 3 . . 1 . . . . . . . . . 3 Parts Damaged 3 | . . . . . . . . . 1 . . 1 . . . . . . . . . 1 Bothacking | -11 -10 -10 -9 -9 -9 -8 -8 -8 -8 -7 -7 -7 -7 -7 -7 -6 -6 -6 -6 -6 -6 -5 ------------ Run | Jun Mat Min Mat Min Exi Min Mat Gar Mat Fac Was Fac Low Low Dat Pro Fac Ext Cet Arc Hub Fac Used RIF Installer . | . . . . . . . . . . . . . . . . . . . . . . . Robots Hacked . | . . . . . . . . . . . . . . . . . . . . . . . Non-combat . | . . . . . . . . . . . . . . . . . . . . . . . Combat . | . . . . . . . . . . . . . . . . . . . . . . . Robot Hacks Applied . | . . . . . . . . . . . . . . . . . . . . . . . Relay Couplers Released 14 | . . . . . . . . 3 . 3 . 3 . . . . . . . . 1 4 Machine Destruction 4 | . . . . . . . . 3 . . . . . . . . . . . . 1 . Programmers 10 | . . . . . . . . . . 3 . 3 . . . . . . . . . 4 Fabnet Peak Effective % . | . . . . . . . . . . . . . . . . . . . . . . . Robots Rewired 8 | . . . . . . . . . . . . . . . . . . 8 . . . . Allies Hacked . | . . . . . . . . . . . . . . . . . . . . . . . Hacks Repelled . | . . . . . . . . . . . . . . . . . . . . . . . Allies | -11 -10 -10 -9 -9 -9 -8 -8 -8 -8 -7 -7 -7 -7 -7 -7 -6 -6 -6 -6 -6 -6 -5 -------- Run | Jun Mat Min Mat Min Exi Min Mat Gar Mat Fac Was Fac Low Low Dat Pro Fac Ext Cet Arc Hub Fac Total Allies 34 | . . . . 4 . . . . . . . . . . . 1 2 23 . . 3 1 Largest Group 15 | . . . . 4 . . . . . . . . . . . 1 1 15 12 2 3 1 Highest-Rated Group 562 | . . . . 71 . . . . . . . . . . . 96 96 562 463 183 244 10 Highest-Rated Ally 159 | . . . . 31 . . . . . . . . . . . 96 96 159 159 152 109 10 Total Orders 58 | . . . . . . . . . . . . . . . . . 17 10 9 1 6 15 STAY 7 | . . . . . . . . . . . . . . . . . 3 . . . 4 . FOLLOW 2 | . . . . . . . . . . . . . . . . . 2 . . . . . RETURN 49 | . . . . . . . . . . . . . . . . . 12 10 9 1 2 15 Ally Attacks 871 | . . . . 4 . . . . . . . . . . . 3 70 267 197 5 120 205 Total Damage 16925 | . . . . 26 . . . . . . . . . . . 110 1454 5789 4473 85 1276 3712 Kills 128 | . . . . 1 . . . . . . . . . . . . 13 48 24 . 15 27 Allies Corrupted 1 | . . . . . . . . . . . . . . . . . 1 . . . . . Allies Melted 1 | . . . . . . . . . . . . . . . . . . . 1 . . . Field Lobotomies 2 | . . . . . . . . . . . . . . . . . . . . . 2 . Intel | -11 -10 -10 -9 -9 -9 -8 -8 -8 -8 -7 -7 -7 -7 -7 -7 -6 -6 -6 -6 -6 -6 -5 ------- Run | Jun Mat Min Mat Min Exi Min Mat Gar Mat Fac Was Fac Low Low Dat Pro Fac Ext Cet Arc Hub Fac Robot Analysis Total 8 | . 2 . 1 . . . 1 . . . . . . . . . . 3 . . . 1 Derelict Logs Recovered 5 | . . 1 . 1 . . . . . . . . 1 1 . 1 . . . . . . Drone Launches 87 | . . . . . . . . . . . . . . . . . 22 16 13 1 6 29 Drone Recoveries 77 | . . . . . . . . . . . . . . . . . 22 15 11 3 1 25 Exploration | -11 -10 -10 -9 -9 -9 -8 -8 -8 -8 -7 -7 -7 -7 -7 -7 -6 -6 -6 -6 -6 -6 -5 ------------- Run | Jun Mat Min Mat Min Exi Min Mat Gar Mat Fac Was Fac Low Low Dat Pro Fac Ext Cet Arc Hub Fac Turns Passed 40979 | 82 1767 694 3812 967 337 1147 1678 1042 3501 1803 901 4632 768 743 166 527 4685 1717 629 222 4054 5105 Spaces Moved 18236 | 46 849 397 2026 553 211 638 834 514 1259 774 308 1819 421 435 98 305 2141 746 236 87 1595 1944 Core 17 | 2 . . . . . . . . . . . . . . . . . . . . 15 . Treads 16078 | 44 741 397 2026 553 211 637 278 472 1155 774 308 1819 421 435 98 305 2141 746 236 87 1171 1023 Legs 481 | . . . . . . . . . . . . . . . . . . . . . . 481 Wheels 1660 | . 108 . . . . 1 556 42 104 . . . . . . . . . . . 409 440 Hover . | . . . . . . . . . . . . . . . . . . . . . . . Flight . | . . . . . . . . . . . . . . . . . . . . . . . Fastest Speed 50 | 50 115 160 160 160 160 125 125 160 153 151 237 163 167 167 167 165 157 152 152 232 156 145 Average Speed 193 | 155 168 160 160 160 160 160 147 162 233 214 241 230 167 167 167 168 185 205 216 233 219 217 Slowest Speed 2150 | 160 240 160 160 160 160 240 320 185 250 237 243 247 167 167 167 250 237 237 232 235 2150 540 Overloaded Moves . | . . . . . . . . . . . . . . . . . . . . . . . Propulsion Burnouts . | . . . . . . . . . . . . . . . . . . . . . . . Robots Hopped . | . . . . . . . . . . . . . . . . . . . . . . . Cave-ins Triggered . | . . . . . . . . . . . . . . . . . . . . . . . Exploration Rate (%) 67 | 4 99 94 98 98 60 92 45 59 87 25 87 42 59 60 70 48 41 85 73 83 95 45 Regions Visited 22 Branch Regions 12 Pre-discovered Areas 14 | . 2 2 2 2 . . . . 2 . . 1 2 . 1 . . . . . . . Known Exits Taken 3 | . . . . . . 1 1 . . . . 1 . . . . . . . . . . Unknown Exits Taken 16 | 1 1 1 1 1 1 . . . 1 . . . 1 1 1 1 1 1 1 1 1 . Scrap Searched 11 | . . 1 . 2 . 1 . . . . . . 2 1 . 4 . . . . . . Spaces Dug 62 | . . . . . . . 1 1 20 3 . 4 . . . . 6 2 . . 7 18 Terrain Destroyed 941 | . 17 1 48 1 . 120 54 1 162 26 11 92 48 3 . . 16 11 3 . 267 60 Melee 3 | . . . . . . . . 1 . . . . . . . . 2 . . . . . Projectile 306 | . . . 2 1 . 1 5 . 76 18 11 49 15 3 . . 9 11 3 . 42 60 AOE 632 | . 17 1 46 . . 119 49 . 86 8 . 43 33 . . . 5 . . . 225 . Terrain Rammed . | . . . . . . . . . . . . . . . . . . . . . . . Walls Destroyed . | . . . . . . . . . . . . . . . . . . . . . . . Machines Disabled . | . . . . . . . . . . . . . . . . . . . . . . . Actions | -11 -10 -10 -9 -9 -9 -8 -8 -8 -8 -7 -7 -7 -7 -7 -7 -6 -6 -6 -6 -6 -6 -5 --------- Run | Jun Mat Min Mat Min Exi Min Mat Gar Mat Fac Was Fac Low Low Dat Pro Fac Ext Cet Arc Hub Fac Total 22103 | 53 1053 419 2350 600 211 697 1175 629 1651 862 413 2128 454 444 101 312 2780 881 335 104 1940 2511 Wait 2095 | . 98 . 100 29 . 7 253 25 240 40 54 145 2 3 . . 525 48 64 12 199 251 Move 18216 | 45 848 396 2025 552 210 637 833 513 1258 774 307 1818 420 434 97 304 2140 745 235 86 1595 1944 Hop . | . . . . . . . . . . . . . . . . . . . . . . . Pick Up 150 | 1 10 2 16 . 1 1 7 9 8 4 2 13 2 . . . 16 4 6 . 6 42 Fast Attach 104 | 6 7 . 12 . . 1 4 6 7 3 2 13 . 1 2 2 5 2 5 . 2 24 Attach 86 | . 3 . 4 . . 5 2 . 7 3 1 4 1 . . 1 6 1 . 3 17 28 Detach 38 | . 4 . 4 . . . . 1 2 1 . 2 . . . 1 1 1 2 . 6 13 Swap 140 | . 6 . 16 . . 5 12 14 15 4 10 13 1 1 . 1 22 . . . 10 10 Drop 152 | . 3 1 29 . . . 5 13 14 3 2 21 2 . 2 . 16 5 9 . 1 26 Fire 978 | . 73 19 132 17 . 37 55 44 97 27 35 85 26 5 . 3 38 22 12 3 96 152 Melee 6 | . . . . . . . . 4 . . . . . . . . 2 . . . . . Ram 8 | . . . . . . . 1 . . . . . . . . . . . . . 4 3 Kick . | . . . . . . . . . . . . . . . . . . . . . . . Crush 66 | 1 1 1 12 2 . 4 3 . 3 3 . 14 . . . . 6 4 . . 2 10 Escape Stasis 4 | . . . . . . . . . . . . . . . . . . 2 . . 2 . Rewire 45 | . . . . . . . . . . . . . . . . . . 45 . . . . Trap . | . . . . . . . . . . . . . . . . . . . . . . . Miscellaneous 15 | . . . . . . . . . . . . . . . . . 3 2 2 . . 8 Route ------- -11/Junkyard -10/Materials (discovered 5 exits: *Mat x3 / [*Min x2]) -10/Mines (discovered 2 exits: *Mat x2) -9/Materials (discovered 4 exits: *Mat x3 / [*Min]) -9/Mines (discovered 3 exits: *Mat x2 / *Exi) -9/Exiles (discovered 2 exits: [*Min x2]) -8/Mines -8/Materials (discovered 2 exits: *Fac / Gar) -8/Garrison (discovered 4 exits: *Mat x4) -8/Materials (discovered 3 exits: *Fac x3) -7/Factory (discovered 4 exits: Sto x2 / Low x2) -7/Waste -7/Factory (discovered 3 exits: *Sto x2 / *Low) -7/Lower Caves -7/Lower Caves (discovered 2 exits: *Fac / *Dat) -7/Data Miner -6/Proximity Caves -6/Factory (discovered 4 exits: *Fac x2 / [*Low] / *Ext) -6/Extension (discovered 2 exits: *Fac / *Cet) -6/Cetus (discovered 2 exits: *Fac / *Arc) -6/Archives -6/Hub_04(d) (discovered 4 exits: *Fac x4) -5/Factory (discovered 4 exits: [*Fac x3] / Upp) History --------- Turn | Location | Event 37 | -11/Junkyard | Discovered new exit (range 15) 83 | -11/Junkyard | Entered Materials 93 | -10/Materials | Discovered new exit (range 16) 308 | -10/Materials | Build established: Mutant 522 | -10/Materials | Discovered new exit (range 7) 705 | -10/Materials | Discovered new exit (range 10) 1238 | -10/Materials | Central database locked down 1282 | -10/Materials | Discovered new exit (range 10) 1519 | -10/Materials | Discovered new exit (range 14) 1569 | -10/Materials | Repaired EM Pulse Gun 1597 | -10/Materials | Repaired Lgt. Treads 1850 | -10/Materials | Entered Mines 2096 | -10/Mines | Received a Rocket Launcher from a helpful Derelict 2280 | -10/Mines | Core integrity fell below 50% 2314 | -10/Mines | Discovered new exit (range 6) 2435 | -10/Mines | Learned location of Storage (-7) 2536 | -10/Mines | Discovered new exit (range 5) 2544 | -10/Mines | Entered Materials 2544 | -9/Materials | Evolved 2 slots: Utility x2 2825 | -9/Materials | Repaired EM Pulse Gun 3552 | -9/Materials | Discovered new exit (range 12) 3771 | -9/Materials | Build established: Scavenger-Mutant 3944 | -9/Materials | Discovered new exit (range 11) 4087 | -9/Materials | Build established: Mutant 4544 | -9/Materials | First assault squad dispatched 4719 | -9/Materials | Repaired Lgt. Armor Plating 4752 | -9/Materials | Repaired Imp. Light Cannon 4903 | -9/Materials | Discovered new exit (range 6) 5288 | -9/Materials | Core integrity fell below 50% 5400 | -9/Materials | Discovered new exit (range 5) 5403 | -9/Materials | Build established: Scavenger-Mutant 5406 | -9/Materials | Identified exit to Materials 5778 | -9/Materials | Build established: Mutant 6356 | -9/Materials | Entered Mines 6517 | -9/Mines | Escorted by a lone wolf Derelict 6528 | -9/Mines | Discovered exit to Materials (range 6) 6672 | -9/Mines | Found a hidden stash of uninstalled traps 6856 | -9/Mines | Discovered exit to Materials (range 15) 6985 | -9/Mines | Assisted by bots powering up and referring to "LRC-V3" 6997 | -9/Mines | Assembled infested the area 7315 | -9/Mines | Deemed a non-threat by the Exiles lab entrance 7316 | -9/Mines | Discovered new exit (range 5) 7323 | -9/Mines | Entered Exiles 7347 | -9/Exiles | Discovered new exit (range 15) 7367 | -9/Exiles | Met 8R-AWN 7391 | -9/Exiles | Met EX-HEX 7434 | -9/Exiles | Met EX-BIN 7451 | -9/Exiles | Aligned with FarCom system 7453 | -9/Exiles | Given EX-Vault access code 7490 | -9/Exiles | Opened EX-Vault 7499 | -9/Exiles | Found Field Lobotomy Kit 7532 | -9/Exiles | Warned to stay clear of 0b10 Research branches 7580 | -9/Exiles | Met EX-DEC 7643 | -9/Exiles | Discovered new exit (range 14) 7660 | -9/Exiles | Left Exiles lab with Field Lobotomy Kit 7660 | -9/Exiles | Entered Mines 7837 | -8/Mines | Lost 5 parts (1p1n1u2w) 8722 | -8/Mines | Discovered exit to Materials (range 9) 8807 | -8/Mines | Entered Materials 8807 | -8/Materials | Evolved 2 slots: Propulsion x1, Utility x1 8844 | -8/Materials | Garrison activated, responded to threat 9024 | -8/Materials | Repaired Lgt. Treads 9058 | -8/Materials | Repaired Rocket Launcher 9091 | -8/Materials | Repaired Imp. Light Cannon 9112 | -8/Materials | Build established: Scavenger-Mutant 9148 | -8/Materials | Repaired Broken Lgt. Treads 9302 | -8/Materials | Garrison activated, responded to threat 9600 | -8/Materials | Repaired Lgt. Armor Plating 9672 | -8/Materials | Identified exit to Garrison 10205 | -8/Materials | Discovered new exit (range 16) 10485 | -8/Materials | Entered Garrison 10524 | -8/Garrison | Triggered checkpoint 10758 | -8/Garrison | Garrison Relay disabled 10772 | -8/Garrison | Triggered checkpoint 10954 | -8/Garrison | Discovered new exit (range 46) 10954 | -8/Garrison | Discovered new exit (range 34) 10954 | -8/Garrison | Discovered new exit (range 51) 10954 | -8/Garrison | Discovered new exit (range 20) 11194 | -8/Garrison | Triggered checkpoint 11214 | -8/Garrison | Triggered checkpoint 11469 | -8/Garrison | Spotted B-75 Beast 11527 | -8/Garrison | Entered Materials 12056 | -8/Materials | Build established: Mutant 12483 | -8/Materials | Core integrity fell below 50% 12508 | -8/Materials | Lost 3 parts (3u) 12955 | -8/Materials | Repaired Imp. Deuterium Engine 13013 | -8/Materials | Repaired Mass Driver 13180 | -8/Materials | Discovered new exit (range 15) 13715 | -8/Materials | Discovered new exit (range 13) 13936 | -8/Materials | Repaired Broken Imp. Transmission Jammer? 14399 | -8/Materials | Repaired Magnetic Acceleration Cannon 14467 | -8/Materials | Discovered new exit (range 10) 14727 | -8/Materials | First assault squad dispatched 14840 | -8/Materials | Destroyed 8 combat bots 15028 | -8/Materials | Entered Factory 15028 | -7/Factory | Evolved 2 slots: Propulsion x1, Utility x1 15611 | -7/Factory | Cargo convoy interrupted 16436 | -7/Factory | Identified exit to Storage 16436 | -7/Factory | Identified exit to Lower Caves 16831 | -7/Factory | Sucked down chute 16831 | -7/Factory | Entered Waste 16880 | -7/Waste | Spotted C-40 Crusher 16890 | -7/Waste | Destroyed C-40 Crusher 16895 | -7/Waste | Spotted C-40 Crusher 16914 | -7/Waste | Spotted C-40 Crusher 16914 | -7/Waste | Destroyed C-40 Crusher 16921 | -7/Waste | Destroyed C-40 Crusher 16956 | -7/Waste | Spotted C-40 Crusher 16968 | -7/Waste | Destroyed C-40 Crusher 17111 | -7/Waste | Spotted C-40 Crusher 17123 | -7/Waste | Destroyed C-40 Crusher 17133 | -7/Waste | Spotted C-40 Crusher 17157 | -7/Waste | Crushed by Compactor (1 part destroyed, 2 dropped) 17157 | -7/Waste | Destroyed C-40 Crusher 17522 | -7/Waste | Discovered new exit (range 12) 17732 | -7/Waste | Entered Factory 19375 | -7/Factory | Discovered exit to Lower Caves (range 15) 19794 | -7/Factory | Discovered exit to Storage (range 13) 20671 | -7/Factory | Fabricated Arm. Medium Treads (x2) 21107 | -7/Factory | Discovered exit to Storage (range 14) 22364 | -7/Factory | Entered Lower Caves 22399 | -7/Lower Caves | Met a Warlord Commander 22400 | -7/Lower Caves | Learned location of Warlord (-4) 22410 | -7/Lower Caves | Found Encrypted Comm Array 22662 | -7/Lower Caves | Encountered a Warlord checkpoint 23070 | -7/Lower Caves | Discovered new exit (range 5) 23132 | -7/Lower Caves | Entered another Lower Caves area 23181 | -7/Lower Caves | Discovered new exit (range 6) 23615 | -7/Lower Caves | Spotted B-75 Beast 23676 | -7/Lower Caves | Encountered a Warlord checkpoint 23715 | -7/Lower Caves | Discovered new exit (range 10) 23875 | -7/Lower Caves | Entered Data Miner 23876 | -7/Data Miner | Discovered new exit (range 6) 23908 | -7/Data Miner | Met Data Miner 23948 | -7/Data Miner | Learned location of Section 7 (-3) 23948 | -7/Data Miner | Acquired the access code to Warlord's prototype stash 23977 | -7/Data Miner | Received God Mode back door access code from Data Miner 24041 | -7/Data Miner | Entered Proximity Caves 24088 | -6/Proximity Caves | Spotted B-75 Beast 24090 | -6/Proximity Caves | Escorted by Enhanced Grunt 24102 | -6/Proximity Caves | Destroyed B-75 Beast 24192 | -6/Proximity Caves | Learned Factory emergency access door positions 24489 | -6/Proximity Caves | Discovered new exit (range 16) 24568 | -6/Proximity Caves | Entered Factory 24568 | -6/Factory | Accompanied by 1 ally 24568 | -6/Factory | Evolved 2 slots: Utility x2 24874 | -6/Factory | Build established: Hacker-Mutant 25005 | -6/Factory | Fabricated Combat Drone Bay? 25063 | -6/Factory | Fabricated Combat Drone Bay? 25116 | -6/Factory | Fabricated Adv. System Shield? 25804 | -6/Factory | Fabricated Hvy. Rocket Launcher (x1) 25857 | -6/Factory | Incoming investigation squad redirected 25924 | -6/Factory | Fabricated Combat Drone Bay (x1) 26171 | -6/Factory | Discovered new exit (range 14) 26214 | -6/Factory | Spotted B-75 Beast 26281 | -6/Factory | P-60 Hacker assimilated allied Administrator 5a 26425 | -6/Factory | Discovered new exit (range 4) 26462 | -6/Factory | Fabricated Centrium Wheel? 26749 | -6/Factory | Discovered new exit (range 7) 26819 | -6/Factory | Repaired Imp. Medium Treads 26951 | -6/Factory | Fabricated Adv. Medium Treads? 26968 | -6/Factory | Repaired Adv. Assault Cannon 26990 | -6/Factory | Incoming investigation squad redirected 27026 | -6/Factory | Repaired Imp. Transmission Jammer 27404 | -6/Factory | Discovered new exit (range 21) 27466 | -6/Factory | Fabricated Huge Storage Unit? 28108 | -6/Factory | Incoming investigation squad redirected 28454 | -6/Factory | Fabricated Remote Force Field? 29253 | -6/Factory | Entered Extension 29335 | -6/Extension | Rescued a captive Derelict 29354 | -6/Extension | Rescued a captive Derelict 29368 | -6/Extension | Rescued a captive Derelict 29368 | -6/Extension | Rescued a captive Derelict 29437 | -6/Extension | Build established: Machinist-Mutant 29466 | -6/Extension | Rescued a captive Derelict 29467 | -6/Extension | Rescued a captive Derelict 29481 | -6/Extension | Rescued a captive Derelict 29603 | -6/Extension | First assault squad dispatched 29618 | -6/Extension | Incoming assault squad redirected 29629 | -6/Extension | Incoming assault squad redirected 29762 | -6/Extension | Rescued A7 30428 | -6/Extension | Spotted B-75 Beast 30432 | -6/Extension | Allies destroyed B-75 Beast 30438 | -6/Extension | Spotted B-75 Beast 30448 | -6/Extension | Allies destroyed B-75 Beast 30657 | -6/Extension | Rescued a captive Derelict 30658 | -6/Extension | Rescued a captive Derelict 30671 | -6/Extension | Rescued a captive Derelict 30672 | -6/Extension | Rescued a captive Derelict 30743 | -6/Extension | Incoming investigation squad redirected 30783 | -6/Extension | Rescued a captive Derelict 30784 | -6/Extension | Rescued a captive Derelict 30856 | -6/Extension | Rescued a captive Derelict 30895 | -6/Extension | Disrupted transfer network 30896 | -6/Extension | Discovered new exit (range 19) 30896 | -6/Extension | Discovered new exit (range 15) 30970 | -6/Extension | Entered Cetus 30970 | -6/Cetus | Accompanied by 12 allies (A7) 30975 | -6/Cetus | Acquired a Cetus Manufacturing Module code from A7 30990 | -6/Cetus | Spotted Cetus Guard 30990 | -6/Cetus | Spotted Cetus Guard 30994 | -6/Cetus | Spotted Cetus Guard 30994 | -6/Cetus | Spotted Cetus Guard 31004 | -6/Cetus | Allies destroyed Cetus Guard 31006 | -6/Cetus | Allies destroyed Cetus Guard 31013 | -6/Cetus | Allies destroyed Cetus Guard 31015 | -6/Cetus | Allies destroyed Cetus Guard 31020 | -6/Cetus | Cetus Manufacturing Module disabled 31072 | -6/Cetus | Build established: Hacker-Mutant 31174 | -6/Cetus | Failed to start Cetus Manufacturing Module 31356 | -6/Cetus | Discovered new exit (range 22) 31418 | -6/Cetus | Spotted Cetus Guard 31419 | -6/Cetus | Discovered new exit (range 23) 31421 | -6/Cetus | Spotted Cetus Guard 31421 | -6/Cetus | Spotted Cetus Guard 31424 | -6/Cetus | Spotted Cetus Guard 31424 | -6/Cetus | Allies destroyed Cetus Guard 31428 | -6/Cetus | Destroyed Cetus Guard 31438 | -6/Cetus | Allies destroyed Cetus Guard 31442 | -6/Cetus | Destroyed Cetus Guard 31466 | -6/Cetus | Met Revision 17 31547 | -6/Cetus | Build established: Scavenger-Mutant 31599 | -6/Cetus | Entered Archives 31599 | -6/Archives | Accompanied by 4 allies (A7) 31627 | -6/Archives | Met Zhirov 31633 | -6/Archives | Reinforcements dispatched to Archives 31653 | -6/Archives | Read partially decrypted archive contents 31678 | -6/Archives | Reinforcements dispatched to Archives 31679 | -6/Archives | Discovered new exit (range 14) 31680 | -6/Archives | Zhirov warped through subspace 31698 | -6/Archives | Zhirov detonated Archives 31729 | -6/Archives | Lost 4 parts (1n2u1w) 31821 | -6/Archives | Entered Hub_04(d) 32538 | -6/Hub_04(d) | Discovered new exit (range 17) 33062 | -6/Hub_04(d) | Discovered new exit (range 14) 33508 | -6/Hub_04(d) | Discovered new exit (range 11) 34628 | -6/Hub_04(d) | Network Hub disabled 34629 | -6/Hub_04(d) | Spotted Lightning 34632 | -6/Hub_04(d) | Spotted Lightning 34643 | -6/Hub_04(d) | Spotted Lightning 34646 | -6/Hub_04(d) | System corruption reached 10% 34664 | -6/Hub_04(d) | Core integrity fell below 50% 34679 | -6/Hub_04(d) | Core integrity fell below 20% 34685 | -6/Hub_04(d) | Assimilated Lightning with FLK Orb 34700 | -6/Hub_04(d) | Network Hub disabled 34700 | -6/Hub_04(d) | Assimilated Lightning with FLK Orb 34712 | -6/Hub_04(d) | Lost 11 parts (2p5n2u2w) 34934 | -6/Hub_04(d) | Build established: Hacker-Mutant 35105 | -6/Hub_04(d) | Discovered new exit (range 14) 35850 | -6/Hub_04(d) | Network Hub disabled 35872 | -6/Hub_04(d) | Spotted Lightning 35873 | -6/Hub_04(d) | Spotted Lightning 35874 | -6/Hub_04(d) | Spotted Lightning 35875 | -6/Hub_04(d) | Entered Factory 35875 | -5/Factory | Evolved 2 slots: Power x1, Utility x1 35876 | -5/Factory | Identified exit to Upper Caves 36285 | -5/Factory | Lost 3 parts (3u) 36772 | -5/Factory | Lost 3 parts (2u1w) 36803 | -5/Factory | Destroyed 8 combat bots 36899 | -5/Factory | Build established: Mutant 37271 | -5/Factory | System corruption reached 10% 37467 | -5/Factory | Incoming investigation squad redirected 37524 | -5/Factory | Fabricated Combat Drone Bay? 37537 | -5/Factory | Lost 5 parts (1p2n1u1w) 38395 | -5/Factory | Discovered new exit (range 6) 38772 | -5/Factory | Repaired Rnf. Deuterium Engine 38802 | -5/Factory | Repaired Remote Force Field 38893 | -5/Factory | Discovered new exit (range 5) 39201 | -5/Factory | Repaired Broken Adv. Cooling System 39274 | -5/Factory | Spotted B-75 Beast 39298 | -5/Factory | Incoming investigation squad redirected 39363 | -5/Factory | Fabricated Combat Drone Bay (x1) 40050 | -5/Factory | Fabricated Combat Drone Bay? 40075 | -5/Factory | First assault squad dispatched 40236 | -5/Factory | Incoming assault squad redirected 40405 | -5/Factory | Incoming assault squad redirected 40471 | -5/Factory | Discovered new exit (range 15) 40642 | -5/Factory | Fabricated Combat Drone Bay (x1) 40831 | -5/Factory | Assembled infested ambush trap array 40876 | -5/Factory | Incoming assault squad redirected 40897 | -5/Factory | Core integrity fell below 50% 40944 | -5/Factory | Core integrity fell below 20% 40980 | -5/Factory | Destroyed by G-67 Veteran with Plasma Rifle Last Messages --------------- 40952_ The unstable cave ceiling collapses. 40952_ U-05 Engineer lays Concrete. 40956_ The unstable cave ceiling collapses. 40956_ U-05 Engineer lays Concrete. 40959_ The unstable cave ceiling collapses. 40959_ U-05 Engineer lays Concrete. 40960_ System corrupted: Heat flow error (+195). 40960_ U-05 Engineer lays Concrete. 40964_ The unstable cave ceiling collapses. 40964_ U-05 Engineer lays Concrete. 40965_ System corrupted: Imp. Proton Missile Launcher failed to launch. 40969_ Imp. Proton Missile Launcher destroyed. 40969_ Destroyed Imp. Proton Missile Launcher. 40971_ The unstable cave ceiling collapses. 40974_ U-05 Engineer lays Concrete. 40975_ System corrupted: Lgt. Angular Momentum Engine rejected. 40975_ U-05 Engineer lays Concrete. 40977_ The unstable cave ceiling collapses. 40977_ U-05 Engineer lays Concrete. 40980_ Acquired Lgt. Angular Momentum Engine. Map ----- +----------------------------------------------------+ | " %%%= * #???????????????? | | ############ % = [ #???????????????? | | #??????????# ########## #???????????????? | | ##?########### %"""""########+####??????????????? | | ???# # " #! /#??????????????? | | ???# + = """# #??????????????? | | ???# # !%! """#!! #??????????????? | | ???# = "#!| ! #??????????????? | | ???# # F"#!! #??????????????? | | ???# """# ! #??????##??????? | | ???# # #######?????# #??????? | | ???# # # #?????### #???????? | | ???########### # #;##########????????? | | ?????????????# # # [ #?????????? | | ?????????????# # # = ["""""% #?????????? | | ?????????????# %= ="""" %%#?????????? | | ?????????????#### # !=[ " %# ###?????? | | ????????????????### * /# #?????? | | ??????????????????# #### ########## ###?????? | | ??????????????????## # #;##########???????? | | ????????????????????# """"""%##????????? | | ???????????????????## g T""""=!#?????????? | | ??????????????????## i #?????????? | | ?????????????????## ## #?????????? | | ????????????????## # #?????????? | | ????????????????# # @ #?????????? | | ???????????????## # # d #?????????? | | ???????????????# # ! #?????????? | | ??# ??????????## # # #?????????? | | ??# ^##### d #?????????? | | ??# # #+#####?????????? | | ??# = ] % #???????????? | | ??# %[ #???????????? | | ??# |* #???????????? | | + """"" """"" " u #???????????? | | ??????"""" """"" " [ """ #???????????? | | ???????" """ " % """ #####???????????? | | ?????????? u """ #???????????????? | | ?????????" """"" "" #???????????????? | | ?????????" """"" "" #???????????????? | | ????????? """ "" #???????????????? | | ?????????? +##### #???????????????? | | ???????????""""" """"" # ]# #???????????????? | | ???????????""""" """"" # # #???????????????? | | ???????????""?? """ + # #???????????????? | | ?????????????? ?? # !# #???????????????? | | ??????????????"???? !! # # #???????????????? | | ??????????????????? !! ####### #???????????????? | | ????????????????????! #?????# #???????????????? | | ???????????????????? ????? #???????????????? | +----------------------------------------------------+ Best States ------------- Heat Dissipation 86 Energy Generation 34 Energy Capacity 370 Matter Stores 300 Matter Capacity 300 Sight Range 16 Terrain Scan Density 10 Jamming Range 14 Armor Coverage 450 Resistance: KI 30 Resistance: EM 20 Utility Shielding 66 Weapon Shielding 66 Weapon Cycling 20 Evasion (%) 40 Targeting Accuracy 16 Core Analysis 6 Recoil Reduction 4 Kinecelleration 40 Offensive Hacking 20 Defensive Hacking 14 Authchip Count 4 Item Schematics ----------------- Huge Storage Unit | -10/Materials | Hacked Rocket Launcher | -9/Materials | Scanalyzed Hacking Suite | -9/Materials | Scanalyzed Lrn. Tractor Beam | -8/Materials | Scanalyzed Hcp. Storage Unit | -8/Materials | Scanalyzed Adv. System Shield | -8/Materials | Scanalyzed Arm. Medium Treads | -8/Materials | Scanalyzed Imp. Transmission Jammer | -8/Materials | Scanalyzed Hvy. Rocket Launcher | -7/Factory | Scanalyzed Combat Drone Bay | -7/Data Miner | Free Lgt. Regenerative Plating | -7/Data Miner | Free Cld. Cesium-ion Thruster | -7/Data Miner | Free Exp. Targeting Computer | -7/Data Miner | Free Cld. Plasma Cannon | -7/Data Miner | Free Nuclear Pulse Array | -7/Data Miner | Free Imp. Weapon Cycler | -7/Data Miner | Free Hvy. Phase Cannon | -7/Data Miner | Free Fusion Compressor | -7/Data Miner | Free Imp. Powered Armor | -7/Data Miner | Free Remote Force Field | -6/Factory | Hacked Imp. Cloaking Device | -6/Hub_04(d) | Hacked Hvy. Treads | -5/Factory | Scanalyzed Imp. Energy Well | -5/Factory | Scanalyzed Adv. Cooling System | -5/Factory | Scanalyzed Robot Schematics ------------------ R-10 Processor | -7/Data Miner | Free Y-54 Guardian | -7/Data Miner | Free G-50 Soldier | -7/Data Miner | Free H-66 Slayer | -7/Data Miner | Free E-15 Imp | -7/Data Miner | Free B-60 Warrior | -7/Data Miner | Free O-24 Administrator | -6/Hub_04(d) | Hacked Fabricated ------------ Arm. Medium Treads | x2 | -7/Factory | Authchip Combat Drone Bay | x1 | -6/Factory | Authchip Combat Drone Bay | x1 | -6/Factory Adv. System Shield | x1 | -6/Factory | Authchip Hvy. Rocket Launcher | x1 | -6/Factory | Authchip Combat Drone Bay | x1 | -6/Factory Centrium Wheel | x2 | -6/Factory | Preloaded Adv. Medium Treads | x2 | -6/Factory | Preloaded Huge Storage Unit | x1 | -6/Factory Remote Force Field | x2 | -6/Factory Combat Drone Bay | x1 | -5/Factory Combat Drone Bay | x1 | -5/Factory Combat Drone Bay | x1 | -5/Factory Combat Drone Bay | x1 | -5/Factory Alien Tech Used ----------------- None Achievements -------------- Release The Drones! Challenges ------------ None Game ------ Seed GammaSwarmSaw Manual? 0 Play Time 03:53:04 Cumulative 130.3 hours Start 2024.01.21 @ 07:56:16 End 2024.01.22 @ 09:18:32 Sessions 11 Manual Loads 0 Difficulty Rogue Special Mode None Game No. 124 Rogue 124 Adventurer 0 Explorer 0 Win Type - Total 2 Types 2/0/0/0/0/0/0/0/0 Lore% 56 Gallery% 62 Achievement% 53 Wizard Run 0 Options --------- ASCII 0 Keyboard 1 Movement Numpad Keybinds 0 Fullscreen 2 Font 18/SmallcapsGlow Map View 76x50 Tactical HUD 1 Map Filters NONE Filters NONE Steam 1 RUN: 462716fc-6554-4220-ab6e-a430e6e94d61